[Event "Late-Titled-Tuesday-Blitz-April-02-2024"]
[Site "Chess.com"]
[Date "2024.04.02"]
[Round "9"]
[White "tgpgoat"]
[Black "HajiyevKanan"]
[Result "1-0"]
[WhiteElo "2448"]
[BlackElo "2588"]
[TimeControl "180+1"]
[EndTime "15:41:23 PDT"]
[Termination "tgpgoat won by resignation"]

1. Nf3 {[%clk 0:03:00.9]} 1... d5 {[%clk 0:02:59.3]} 2. b3 {[%clk 0:02:53.6]}
2... Nf6 {[%clk 0:02:58.2]} 3. Bb2 {[%clk 0:02:54.1]} 3... g6 {[%clk 0:02:59.1]}
4. e3 {[%clk 0:02:53.5]} 4... Bg7 {[%clk 0:02:59.6]} 5. Be2 {[%clk 0:02:53.1]}
5... O-O {[%clk 0:02:59.8]} 6. O-O {[%clk 0:02:53.7]} 6... c5 {[%clk 0:03:00.5]}
7. c4 {[%clk 0:02:53.5]} 7... b6 {[%clk 0:03:00]} 8. cxd5 {[%clk 0:02:52.2]}
8... Nxd5 {[%clk 0:03:00.3]} 9. Bxg7 {[%clk 0:02:52.3]} 9... Kxg7 {[%clk
0:03:01.2]} 10. Qc2 {[%clk 0:02:52.3]} 10... Bb7 {[%clk 0:03:01.2]} 11. Nc3
{[%clk 0:02:52.4]} 11... Nc6 {[%clk 0:03:00.5]} 12. Rfd1 {[%clk 0:02:52.1]}
12... f6 {[%clk 0:02:59.2]} 13. d4 {[%clk 0:02:50.6]} 13... cxd4 {[%clk
0:02:51.2]} 14. Nxd4 {[%clk 0:02:50.1]} 14... Nxd4 {[%clk 0:02:48.5]} 15. Rxd4
{[%clk 0:02:50.6]} 15... Qc7 {[%clk 0:02:22.9]} 16. Rc4 {[%clk 0:02:36.6]} 16...
Qe5 {[%clk 0:02:19.2]} 17. Rd1 {[%clk 0:02:25.8]} 17... Rac8 {[%clk 0:02:10.8]}
18. Nxd5 {[%clk 0:02:23]} 18... Rxc4 {[%clk 0:01:31.6]} 19. bxc4 {[%clk
0:02:18.6]} 19... Rc8 {[%clk 0:01:30.2]} 20. Qd2 {[%clk 0:02:07.3]} 20... h5
{[%clk 0:01:26.4]} 21. Bf3 {[%clk 0:02:03.6]} 21... h4 {[%clk 0:01:25.9]} 22.
Qd4 {[%clk 0:02:01]} 22... Qxd4 {[%clk 0:01:04.8]} 23. Rxd4 {[%clk 0:01:59.3]}
23... e6 {[%clk 0:01:04.7]} 24. Nxb6 {[%clk 0:01:50]} 24... Rc7 {[%clk 0:00:43]}
25. Rd7+ {[%clk 0:01:35.8]} 25... Rxd7 {[%clk 0:00:41.4]} 26. Nxd7 {[%clk
0:01:36.4]} 26... Ba6 {[%clk 0:00:39.1]} 27. Be2 {[%clk 0:01:34.1]} 27... Kf7
{[%clk 0:00:38.2]} 28. Nc5 {[%clk 0:01:33.8]} 28... Bc8 {[%clk 0:00:38.5]} 29.
Bf3 {[%clk 0:01:34]} 29... Ke7 {[%clk 0:00:38.1]} 30. Bb7 {[%clk 0:01:32.6]}
30... Bxb7 {[%clk 0:00:33.4]} 31. Nxb7 {[%clk 0:01:33.5]} 31... Kd7 {[%clk
0:00:33.8]} 32. c5 {[%clk 0:01:33.6]} 32... Kc6 {[%clk 0:00:34.3]} 33. Nd8+
{[%clk 0:01:32.3]} 33... Kd5 {[%clk 0:00:34.5]} 34. c6 {[%clk 0:01:32.5]} 34...
Kd6 {[%clk 0:00:35.1]} 35. f4 {[%clk 0:01:27.3]} 35... e5 {[%clk 0:00:27.6]} 36.
fxe5+ {[%clk 0:01:25.4]} 36... fxe5 {[%clk 0:00:28.5]} 37. Nf7+ {[%clk
0:01:25.4]} 37... Kxc6 {[%clk 0:00:23.9]} 38. Nxe5+ {[%clk 0:01:26.3]} 38... Kd5
{[%clk 0:00:23.8]} 39. Nxg6 {[%clk 0:01:25.5]} 39... h3 {[%clk 0:00:23.8]} 40.
gxh3 {[%clk 0:01:25.4]} 40... a5 {[%clk 0:00:24.4]} 41. h4 {[%clk 0:01:25.7]}
41... a4 {[%clk 0:00:18.6]} 42. h5 {[%clk 0:01:24.8]} 1-0

[Event "Late-Titled-Tuesday-Blitz-April-02-2024"]
[Site "Chess.com"]
[Date "2024.04.02"]
[Round "9"]
[White "Msb2"]
[Black "KaydenTroffChess"]
[Result "1-0"]
[WhiteElo "3038"]
[BlackElo "2857"]
[TimeControl "180+1"]
[EndTime "15:41:26 PDT"]
[Termination "Msb2 won by resignation"]

1. d4 {[%clk 0:03:00.9]} 1... Nf6 {[%clk 0:02:59.8]} 2. c4 {[%clk 0:03:01.5]}
2... c5 {[%clk 0:02:59]} 3. d5 {[%clk 0:03:01.5]} 3... b5 {[%clk 0:02:59.3]} 4.
cxb5 {[%clk 0:03:02.4]} 4... a6 {[%clk 0:02:59.8]} 5. bxa6 {[%clk 0:03:03.3]}
5... Bxa6 {[%clk 0:03:00.3]} 6. Nc3 {[%clk 0:03:03.7]} 6... g6 {[%clk 0:03:00]}
7. e4 {[%clk 0:03:03.6]} 7... Bxf1 {[%clk 0:02:59.6]} 8. Kxf1 {[%clk 0:03:04.5]}
8... d6 {[%clk 0:02:59.5]} 9. g3 {[%clk 0:03:05.1]} 9... Bg7 {[%clk 0:02:59.4]}
10. Kg2 {[%clk 0:03:05.8]} 10... O-O {[%clk 0:02:59.9]} 11. Nf3 {[%clk
0:03:06.4]} 11... Nbd7 {[%clk 0:02:59]} 12. a4 {[%clk 0:03:06.9]} 12... Ra6
{[%clk 0:02:59.2]} 13. Qc2 {[%clk 0:03:04.3]} 13... Qa8 {[%clk 0:02:59]} 14. Re1
{[%clk 0:03:04.1]} 14... Rb8 {[%clk 0:02:58.8]} 15. Ra3 {[%clk 0:03:04.2]} 15...
e6 {[%clk 0:02:52.5]} 16. dxe6 {[%clk 0:03:05.1]} 16... fxe6 {[%clk 0:02:52.9]}
17. Nb5 {[%clk 0:03:03.4]} 17... Qc6 {[%clk 0:02:38.8]} 18. Bf4 {[%clk
0:02:54.4]} 18... e5 {[%clk 0:02:15.2]} 19. Bg5 {[%clk 0:02:24.9]} 19... c4
{[%clk 0:01:40.2]} 20. Bxf6 {[%clk 0:02:07.3]} 20... Bxf6 {[%clk 0:01:36.1]} 21.
Rd1 {[%clk 0:02:02.1]} 21... Be7 {[%clk 0:01:35.5]} 22. Rc3 {[%clk 0:01:49.3]}
22... Nb6 {[%clk 0:01:29.7]} 23. b3 {[%clk 0:01:49.8]} 23... Rc8 {[%clk
0:01:17.4]} 24. Na3 {[%clk 0:01:42.3]} 24... Ra5 {[%clk 0:00:49.2]} 25. Nxc4
{[%clk 0:01:40.4]} 25... Rc5 {[%clk 0:00:48.1]} 26. Rc1 {[%clk 0:01:16.4]} 26...
d5 {[%clk 0:00:36.7]} 27. Nxb6 {[%clk 0:01:08.4]} 27... Rxc3 {[%clk 0:00:27.8]}
28. Nxc8 {[%clk 0:01:01.9]} 28... Bb4 {[%clk 0:00:16.5]} 29. Qxc3 {[%clk
0:01:01]} 29... Qxc3 {[%clk 0:00:13.1]} 30. Rxc3 {[%clk 0:01:01.2]} 30... Bxc3
{[%clk 0:00:14]} 31. exd5 {[%clk 0:01:01.2]} 31... e4 {[%clk 0:00:14.6]} 32. Ng5
{[%clk 0:01:01.4]} 1-0

[Event "Late-Titled-Tuesday-Blitz-April-02-2024"]
[Site "Chess.com"]
[Date "2024.04.02"]
[Round "9"]
[White "slidingknight2775"]
[Black "Practical-Play"]
[Result "0-1"]
[WhiteElo "2589"]
[BlackElo "2523"]
[TimeControl "180+1"]
[EndTime "15:41:27 PDT"]
[Termination "Practical-Play won by resignation"]

1. e4 {[%clk 0:03:00.9]} 1... e5 {[%clk 0:02:55]} 2. Nc3 {[%clk 0:03:00.2]} 2...
Nc6 {[%clk 0:02:54]} 3. Nf3 {[%clk 0:02:59.7]} 3... Nf6 {[%clk 0:02:47.6]} 4.
Bb5 {[%clk 0:02:58.6]} 4... Nd4 {[%clk 0:02:46.8]} 5. Nxe5 {[%clk 0:02:58.6]}
5... c6 {[%clk 0:02:28.5]} 6. Bd3 {[%clk 0:02:39]} 6... d5 {[%clk 0:02:13.2]} 7.
exd5 {[%clk 0:02:35.4]} 7... Bd6 {[%clk 0:01:57.7]} 8. O-O {[%clk 0:02:23]} 8...
Bxe5 {[%clk 0:01:52.3]} 9. Re1 {[%clk 0:02:23.5]} 9... Ng4 {[%clk 0:01:52.8]}
10. f4 {[%clk 0:01:02]} 10... Qh4 {[%clk 0:01:51.5]} 11. h3 {[%clk 0:00:57.1]}
11... Qf2+ {[%clk 0:01:45.7]} 12. Kh1 {[%clk 0:00:57]} 12... Qxf4 {[%clk
0:01:41]} 13. Rxe5+ {[%clk 0:00:34]} 13... Nxe5 {[%clk 0:01:40.8]} 14. Ne2
{[%clk 0:00:24.8]} 14... Nxd3 {[%clk 0:01:38.7]} 15. cxd3 {[%clk 0:00:21.8]}
15... Qe5 {[%clk 0:01:35.5]} 16. Nxd4 {[%clk 0:00:20.6]} 16... Qxd4 {[%clk
0:01:36.4]} 17. Qe2+ {[%clk 0:00:20.9]} 17... Kd8 {[%clk 0:01:33.5]} 18. Rb1
{[%clk 0:00:11.7]} 18... Re8 {[%clk 0:01:32.4]} 19. Qf1 {[%clk 0:00:09.9]} 19...
Qxd5 {[%clk 0:01:31.6]} 20. b3 {[%clk 0:00:06.6]} 20... Bxh3 {[%clk 0:01:31.3]}
21. Bb2 {[%clk 0:00:07]} 21... f6 {[%clk 0:01:27.7]} 22. Kh2 {[%clk 0:00:04]}
22... Bd7 {[%clk 0:01:26.9]} 23. Bc3 {[%clk 0:00:03]} 23... Kc7 {[%clk
0:01:26.6]} 24. Rc1 {[%clk 0:00:02.7]} 24... Re7 {[%clk 0:01:25.4]} 25. Kh1
{[%clk 0:00:02.4]} 25... Rae8 {[%clk 0:01:25.3]} 26. Qf4+ {[%clk 0:00:03.1]}
26... Qd6 {[%clk 0:01:20.8]} 27. Qh4 {[%clk 0:00:03.5]} 27... g5 {[%clk
0:01:18.7]} 28. Qf2 {[%clk 0:00:03.3]} 28... Re2 {[%clk 0:01:16.6]} 29. Qf1
{[%clk 0:00:03.8]} 29... Qg3 {[%clk 0:01:14.8]} 30. Ba5+ {[%clk 0:00:02.8]}
30... Kb8 {[%clk 0:01:14.2]} 31. Bc3 {[%clk 0:00:03.7]} 31... Re1 {[%clk
0:01:14.1]} 32. Rxe1 {[%clk 0:00:03.4]} 32... Rxe1 {[%clk 0:01:15]} 33. Kg1
{[%clk 0:00:03.8]} 33... Rxf1+ {[%clk 0:01:14.4]} 34. Kxf1 {[%clk 0:00:04.7]}
34... h5 {[%clk 0:01:13.9]} 0-1

[Event "Late-Titled-Tuesday-Blitz-April-02-2024"]
[Site "Chess.com"]
[Date "2024.04.02"]
[Round "9"]
[White "ImportedItalianMaple"]
[Black "ellennilssen"]
[Result "1-0"]
[WhiteElo "2527"]
[BlackElo "2352"]
[TimeControl "180+1"]
[EndTime "15:41:28 PDT"]
[Termination "ImportedItalianMaple won by resignation"]

1. e4 {[%clk 0:03:00.9]} 1... c6 {[%clk 0:02:59.1]} 2. d4 {[%clk 0:02:58.8]}
2... d5 {[%clk 0:02:58.9]} 3. e5 {[%clk 0:02:59.3]} 3... c5 {[%clk 0:02:55.6]}
4. dxc5 {[%clk 0:02:59.2]} 4... Bf5 {[%clk 0:02:55.8]} 5. Bb5+ {[%clk
0:02:49.7]} 5... Nd7 {[%clk 0:02:54.2]} 6. Qxd5 {[%clk 0:02:29.6]} 6... e6
{[%clk 0:02:47.7]} 7. Qxb7 {[%clk 0:02:29.1]} 7... Rb8 {[%clk 0:02:12.9]} 8.
Bxd7+ {[%clk 0:02:28.5]} 8... Ke7 {[%clk 0:02:13.1]} 9. Qxa7 {[%clk 0:02:13.1]}
9... Ra8 {[%clk 0:02:07.7]} 10. Qb7 {[%clk 0:01:57]} 10... Rb8 {[%clk
0:02:07.1]} 11. Qc6 {[%clk 0:01:43.8]} 11... Qxd7 {[%clk 0:02:05.6]} 12. Qd6+
{[%clk 0:01:43.9]} 12... Qxd6 {[%clk 0:02:05]} 13. cxd6+ {[%clk 0:01:44.3]}
13... Kd7 {[%clk 0:02:04.2]} 14. Nf3 {[%clk 0:01:30.2]} 14... Bxc2 {[%clk
0:02:01.3]} 15. Na3 {[%clk 0:01:30.8]} 15... Be4 {[%clk 0:01:59.2]} 16. Nc4
{[%clk 0:01:26.5]} 16... f6 {[%clk 0:01:57.7]} 17. Be3 {[%clk 0:01:24.8]} 17...
Bd5 {[%clk 0:01:36.5]} 18. Nb6+ {[%clk 0:01:22.5]} 18... Kc6 {[%clk 0:01:36.2]}
19. Rc1+ {[%clk 0:01:20.8]} 19... Kb5 {[%clk 0:01:33]} 20. Nxd5 {[%clk
0:01:18.6]} 20... exd5 {[%clk 0:01:32.9]} 21. Nd4+ {[%clk 0:01:18.4]} 21... Ka6
{[%clk 0:01:31.4]} 22. Rc6+ {[%clk 0:01:15.8]} 22... Ka5 {[%clk 0:01:28.6]} 23.
Nb3+ {[%clk 0:01:08.9]} 23... Ka4 {[%clk 0:01:27.3]} 24. e6 {[%clk 0:00:55.1]}
24... Nh6 {[%clk 0:01:20.1]} 25. Bxh6 {[%clk 0:00:39.1]} 25... gxh6 {[%clk
0:01:19.6]} 26. O-O {[%clk 0:00:39.1]} 26... Rg8 {[%clk 0:01:06.7]} 27. e7
{[%clk 0:00:37.4]} 27... Bxe7 {[%clk 0:01:01.8]} 28. dxe7 {[%clk 0:00:38.3]}
28... Rbe8 {[%clk 0:01:01.7]} 29. Re1 {[%clk 0:00:38.4]} 29... Rg7 {[%clk
0:01:01.4]} 30. Rc7 {[%clk 0:00:31.2]} 30... Kb5 {[%clk 0:00:56.5]} 31. Nd4+
{[%clk 0:00:30.8]} 31... Kb6 {[%clk 0:00:56.7]} 32. Rc6+ {[%clk 0:00:26.5]}
32... Kb7 {[%clk 0:00:56.3]} 33. Rce6 {[%clk 0:00:27.2]} 33... h5 {[%clk
0:00:53.7]} 34. Nf5 {[%clk 0:00:26.6]} 1-0

[Event "Late-Titled-Tuesday-Blitz-April-02-2024"]
[Site "Chess.com"]
[Date "2024.04.02"]
[Round "9"]
[White "FredddieCroderg"]
[Black "campochess"]
[Result "1-0"]
[WhiteElo "2396"]
[BlackElo "2187"]
[TimeControl "180+1"]
[EndTime "15:41:40 PDT"]
[Termination "FredddieCroderg won by resignation"]

1. d4 {[%clk 0:02:59.1]} 1... d5 {[%clk 0:02:58.4]} 2. c4 {[%clk 0:02:58]} 2...
e6 {[%clk 0:02:57.9]} 3. Nc3 {[%clk 0:02:56.4]} 3... a6 {[%clk 0:02:57.9]} 4.
cxd5 {[%clk 0:02:54.8]} 4... exd5 {[%clk 0:02:56.4]} 5. Nf3 {[%clk 0:02:55.2]}
5... Be7 {[%clk 0:02:55.1]} 6. Bf4 {[%clk 0:02:54.8]} 6... Nf6 {[%clk
0:02:52.1]} 7. e3 {[%clk 0:02:54.3]} 7... Nbd7 {[%clk 0:02:52.1]} 8. Bd3 {[%clk
0:02:52.9]} 8... O-O {[%clk 0:02:50.8]} 9. Qc2 {[%clk 0:02:52.8]} 9... c5 {[%clk
0:02:42.7]} 10. dxc5 {[%clk 0:02:51.6]} 10... Nxc5 {[%clk 0:02:41.8]} 11. Rd1
{[%clk 0:02:51.9]} 11... Nxd3+ {[%clk 0:02:41.8]} 12. Qxd3 {[%clk 0:02:50.3]}
12... Bg4 {[%clk 0:02:39.2]} 13. h3 {[%clk 0:02:47.1]} 13... Bh5 {[%clk
0:02:37.8]} 14. Nxd5 {[%clk 0:02:43.2]} 14... Nxd5 {[%clk 0:02:36.5]} 15. Qxd5
{[%clk 0:02:42.9]} 15... Bb4+ {[%clk 0:02:29.4]} 16. Ke2 {[%clk 0:02:37.7]}
16... Bxf3+ {[%clk 0:02:20.7]} 17. Kxf3 {[%clk 0:02:31.8]} 17... Qf6 {[%clk
0:02:14.4]} 18. Qd4 {[%clk 0:02:25.1]} 18... Qc6+ {[%clk 0:02:08.5]} 19. Kg3
{[%clk 0:02:24.6]} 19... Ba5 {[%clk 0:02:01.7]} 20. Kh2 {[%clk 0:02:16.2]} 20...
Rad8 {[%clk 0:02:01.3]} 21. Qe5 {[%clk 0:02:07.4]} 21... Bb6 {[%clk 0:01:38]}
22. Rd6 {[%clk 0:02:00]} 22... Qc5 {[%clk 0:01:34.9]} 23. Rhd1 {[%clk
0:01:53.2]} 23... Qxe5 {[%clk 0:01:30.8]} 24. Bxe5 {[%clk 0:01:52.5]} 24... Rde8
{[%clk 0:01:29.2]} 25. Rxb6 {[%clk 0:01:45.9]} 25... Rxe5 {[%clk 0:01:26.6]} 26.
Rd7 {[%clk 0:01:41.1]} 26... h5 {[%clk 0:01:17]} 27. Rdxb7 {[%clk 0:01:40.1]}
27... Rf5 {[%clk 0:01:09.5]} 28. f3 {[%clk 0:01:31.7]} 28... Re8 {[%clk
0:01:06.9]} 29. Rb8 {[%clk 0:01:30.2]} 29... Rxb8 {[%clk 0:01:04.1]} 30. Rxb8+
{[%clk 0:01:29.6]} 30... Kh7 {[%clk 0:01:04]} 31. Rb6 {[%clk 0:01:29.2]} 31...
Ra5 {[%clk 0:01:03.1]} 32. a3 {[%clk 0:01:28.3]} 32... g5 {[%clk 0:01:00.9]} 33.
h4 {[%clk 0:01:26.5]} 33... gxh4 {[%clk 0:00:54.4]} 34. Kh3 {[%clk 0:01:25.6]}
34... Kg7 {[%clk 0:00:54.4]} 35. Kxh4 {[%clk 0:01:23.9]} 35... f6 {[%clk
0:00:47.5]} 36. e4 {[%clk 0:01:19.7]} 36... Kg6 {[%clk 0:00:47.2]} 37. f4 {[%clk
0:01:14.4]} 37... Kg7 {[%clk 0:00:45.5]} 38. f5 {[%clk 0:01:10.2]} 38... Ra4
{[%clk 0:00:44.6]} 39. Rb4 {[%clk 0:01:07.6]} 39... Ra5 {[%clk 0:00:37.5]} 40.
Kxh5 {[%clk 0:01:07.5]} 40... Rc5 {[%clk 0:00:37]} 41. Rb7+ {[%clk 0:01:07.1]}
41... Kg8 {[%clk 0:00:36.9]} 42. Kg6 {[%clk 0:01:06.7]} 42... Kf8 {[%clk
0:00:30.2]} 43. Kxf6 {[%clk 0:01:06.1]} 43... Ke8 {[%clk 0:00:30]} 44. e5 {[%clk
0:01:03.3]} 1-0

[Event "Late-Titled-Tuesday-Blitz-April-02-2024"]
[Site "Chess.com"]
[Date "2024.04.02"]
[Round "9"]
[White "Hirna2005"]
[Black "BabageldiAnnaberdiyev"]
[Result "0-1"]
[WhiteElo "2349"]
[BlackElo "2593"]
[TimeControl "180+1"]
[EndTime "15:41:43 PDT"]
[Termination "BabageldiAnnaberdiyev won by resignation"]

1. e4 {[%clk 0:03:00.9]} 1... e6 {[%clk 0:02:58.2]} 2. d4 {[%clk 0:03:00.6]}
2... d5 {[%clk 0:02:57.8]} 3. e5 {[%clk 0:03:01.3]} 3... c5 {[%clk 0:02:57.3]}
4. c3 {[%clk 0:03:02]} 4... Nc6 {[%clk 0:02:57.7]} 5. Be3 {[%clk 0:03:02.2]}
5... cxd4 {[%clk 0:02:56.3]} 6. cxd4 {[%clk 0:03:02]} 6... Nge7 {[%clk
0:02:56.9]} 7. Nf3 {[%clk 0:03:00.9]} 7... Nf5 {[%clk 0:02:56.6]} 8. Nc3 {[%clk
0:03:00.7]} 8... Be7 {[%clk 0:02:52.2]} 9. Rc1 {[%clk 0:02:55.5]} 9... O-O
{[%clk 0:02:50.7]} 10. Bd3 {[%clk 0:02:55.5]} 10... h6 {[%clk 0:02:37.8]} 11.
O-O {[%clk 0:02:54.5]} 11... a6 {[%clk 0:02:37]} 12. Qd2 {[%clk 0:02:47.1]}
12... Nxe3 {[%clk 0:02:19.9]} 13. fxe3 {[%clk 0:02:46.6]} 13... f5 {[%clk
0:02:19.8]} 14. exf6 {[%clk 0:02:45.8]} 14... Bxf6 {[%clk 0:02:19.9]} 15. Bb1
{[%clk 0:02:44.6]} 15... Kf7 {[%clk 0:02:01]} 16. Na4 {[%clk 0:02:40.1]} 16...
Ke7 {[%clk 0:01:59.5]} 17. Qc2 {[%clk 0:02:20.4]} 17... Qd6 {[%clk 0:01:57.2]}
18. Nb6 {[%clk 0:02:18.1]} 18... Rb8 {[%clk 0:01:56.9]} 19. Qb3 {[%clk
0:02:10.7]} 19... Na5 {[%clk 0:01:47.5]} 20. Nxc8+ {[%clk 0:02:03.5]} 20...
Rfxc8 {[%clk 0:01:48.4]} 21. Qd3 {[%clk 0:02:00.9]} 21... Nc6 {[%clk 0:01:39.4]}
22. a3 {[%clk 0:01:54.8]} 22... e5 {[%clk 0:01:28.8]} 23. dxe5 {[%clk
0:01:52.8]} 23... Nxe5 {[%clk 0:01:29.7]} 24. Nxe5 {[%clk 0:01:48.5]} 24... Qxe5
{[%clk 0:01:30]} 25. b4 {[%clk 0:01:39.2]} 25... b5 {[%clk 0:01:22.1]} 26. Rc5
{[%clk 0:01:33]} 26... Rxc5 {[%clk 0:01:19]} 27. bxc5 {[%clk 0:01:32.9]} 27...
Rc8 {[%clk 0:01:19.4]} 28. Rc1 {[%clk 0:01:25.5]} 28... Qb2 {[%clk 0:01:16.4]}
29. Re1 {[%clk 0:00:57.9]} 29... Rxc5 {[%clk 0:01:13.2]} 30. h3 {[%clk
0:00:43.2]} 30... Qc3 {[%clk 0:01:11]} 31. Qf1 {[%clk 0:00:39]} 31... Qe5 {[%clk
0:01:00.7]} 32. Bf5 {[%clk 0:00:34.5]} 32... Rc3 {[%clk 0:00:59.2]} 33. Qf3
{[%clk 0:00:28.1]} 33... Rxa3 {[%clk 0:00:57]} 34. Bg4 {[%clk 0:00:27.8]} 34...
Rc3 {[%clk 0:00:50.7]} 35. e4 {[%clk 0:00:22.3]} 35... Rxf3 {[%clk 0:00:48.9]}
0-1

[Event "Late-Titled-Tuesday-Blitz-April-02-2024"]
[Site "Chess.com"]
[Date "2024.04.02"]
[Round "9"]
[White "sacrifoice"]
[Black "Viktoker"]
[Result "1/2-1/2"]
[WhiteElo "2312"]
[BlackElo "2513"]
[TimeControl "180+1"]
[EndTime "15:41:51 PDT"]
[Termination "Game drawn by repetition"]

1. e4 {[%clk 0:03:00]} 1... c6 {[%clk 0:02:58.7]} 2. Nf3 {[%clk 0:02:56.4]} 2...
d5 {[%clk 0:02:59.2]} 3. Nc3 {[%clk 0:02:57.3]} 3... dxe4 {[%clk 0:02:57.9]} 4.
Nxe4 {[%clk 0:02:58.2]} 4... Nf6 {[%clk 0:02:58.5]} 5. Qe2 {[%clk 0:02:57.8]}
5... Nxe4 {[%clk 0:02:57.9]} 6. Qxe4 {[%clk 0:02:58.7]} 6... Nd7 {[%clk
0:02:57]} 7. Bc4 {[%clk 0:02:58.3]} 7... Nf6 {[%clk 0:02:56.9]} 8. Ne5 {[%clk
0:02:58.4]} 8... e6 {[%clk 0:02:53.2]} 9. Qe2 {[%clk 0:02:57.4]} 9... b5 {[%clk
0:02:43.6]} 10. Bb3 {[%clk 0:02:57.1]} 10... Bd6 {[%clk 0:02:42.8]} 11. O-O
{[%clk 0:02:51.6]} 11... O-O {[%clk 0:02:40.2]} 12. f4 {[%clk 0:02:51.1]} 12...
Qc7 {[%clk 0:02:37]} 13. Qd3 {[%clk 0:02:51]} 13... Bb7 {[%clk 0:02:30.5]} 14.
Qe2 {[%clk 0:02:48.7]} 14... a6 {[%clk 0:02:24.9]} 15. d3 {[%clk 0:02:48.4]}
15... c5 {[%clk 0:02:24.7]} 16. Bd2 {[%clk 0:02:42]} 16... a5 {[%clk 0:02:22.6]}
17. a4 {[%clk 0:02:41.7]} 17... bxa4 {[%clk 0:02:10.4]} 18. Bxa4 {[%clk
0:02:23.2]} 18... Nd5 {[%clk 0:02:04.7]} 19. Rae1 {[%clk 0:02:08.5]} 19... Rad8
{[%clk 0:01:57.6]} 20. Rf3 {[%clk 0:02:04.4]} 20... Nb6 {[%clk 0:01:53.5]} 21.
Rh3 {[%clk 0:01:32.9]} 21... Nxa4 {[%clk 0:01:52.1]} 22. Qh5 {[%clk 0:01:32.7]}
22... h6 {[%clk 0:01:52.2]} 23. Ng4 {[%clk 0:01:31.3]} 23... Bxf4 {[%clk
0:01:48.6]} 24. Nxh6+ {[%clk 0:01:29.2]} 24... Bxh6 {[%clk 0:01:27.5]} 25. Bxh6
{[%clk 0:01:28.1]} 25... Rd5 {[%clk 0:01:27.7]} 26. Bg5 {[%clk 0:01:26.8]} 26...
f6 {[%clk 0:01:22.9]} 27. Qh7+ {[%clk 0:00:53.2]} 27... Kf7 {[%clk 0:01:21.6]}
28. Bxf6 {[%clk 0:00:48]} 28... Kxf6 {[%clk 0:00:57.8]} 29. Rh6+ {[%clk
0:00:37]} 29... Kf7 {[%clk 0:00:44.7]} 30. Qg6+ {[%clk 0:00:20.9]} 30... Kg8
{[%clk 0:00:44.4]} 31. Qh7+ {[%clk 0:00:17.6]} 31... Kf7 {[%clk 0:00:44.8]} 32.
Qg6+ {[%clk 0:00:17.5]} 32... Kg8 {[%clk 0:00:44.7]} 33. Qh7+ {[%clk 0:00:17.6]}
33... Kf7 {[%clk 0:00:44.6]} 1/2-1/2

[Event "Late-Titled-Tuesday-Blitz-April-02-2024"]
[Site "Chess.com"]
[Date "2024.04.02"]
[Round "9"]
[White "GMBenjaminBok"]
[Black "temus_galaktionov"]
[Result "0-1"]
[WhiteElo "2994"]
[BlackElo "2876"]
[TimeControl "180+1"]
[EndTime "15:41:54 PDT"]
[Termination "temus_galaktionov won on time"]

1. d4 {[%clk 0:03:00.9]} 1... c6 {[%clk 0:03:00.9]} 2. c4 {[%clk 0:02:59.6]}
2... g6 {[%clk 0:03:01.8]} 3. Nf3 {[%clk 0:02:56.9]} 3... Bg7 {[%clk 0:03:02.1]}
4. Nc3 {[%clk 0:02:57.1]} 4... d6 {[%clk 0:03:02.8]} 5. g3 {[%clk 0:02:55.6]}
5... Nd7 {[%clk 0:03:02.5]} 6. Bg2 {[%clk 0:02:55.5]} 6... Ngf6 {[%clk
0:03:03.2]} 7. O-O {[%clk 0:02:54.9]} 7... O-O {[%clk 0:03:04.1]} 8. e4 {[%clk
0:02:54.9]} 8... e5 {[%clk 0:03:03.4]} 9. Be3 {[%clk 0:02:54.6]} 9... a5 {[%clk
0:03:02.5]} 10. h3 {[%clk 0:02:54.1]} 10... exd4 {[%clk 0:03:00.5]} 11. Nxd4
{[%clk 0:02:53.9]} 11... Re8 {[%clk 0:03:00.8]} 12. Qc2 {[%clk 0:02:52.4]} 12...
Nc5 {[%clk 0:02:58.7]} 13. Rfe1 {[%clk 0:02:41]} 13... a4 {[%clk 0:02:57.8]} 14.
Rad1 {[%clk 0:02:35.4]} 14... Qa5 {[%clk 0:02:57.1]} 15. Bf4 {[%clk 0:02:31.3]}
15... Bf8 {[%clk 0:02:51.2]} 16. Nf3 {[%clk 0:01:55.3]} 16... Rd8 {[%clk
0:02:24.9]} 17. Rd2 {[%clk 0:01:36.3]} 17... Qb4 {[%clk 0:02:19.1]} 18. Bf1
{[%clk 0:01:25.2]} 18... Be6 {[%clk 0:02:06.5]} 19. Red1 {[%clk 0:01:04.7]}
19... Bxc4 {[%clk 0:01:33.8]} 20. Rd4 {[%clk 0:01:04.1]} 20... b5 {[%clk
0:01:33.8]} 21. e5 {[%clk 0:00:50.3]} 21... Nfd7 {[%clk 0:01:07]} 22. Bd2 {[%clk
0:00:20.6]} 22... Ne6 {[%clk 0:00:59.5]} 23. Ne4 {[%clk 0:00:16.3]} 23... Nxd4
{[%clk 0:00:54.5]} 24. Nxd4 {[%clk 0:00:17.2]} 24... Bb3 {[%clk 0:00:48.5]} 25.
Bxb4 {[%clk 0:00:07]} 25... Bxc2 {[%clk 0:00:48.4]} 26. Nxc2 {[%clk 0:00:07.9]}
26... Nxe5 {[%clk 0:00:45.7]} 27. Kg2 {[%clk 0:00:03.4]} 27... c5 {[%clk
0:00:43.6]} 28. Bc3 {[%clk 0:00:03.3]} 28... b4 {[%clk 0:00:43.5]} 29. Bxe5
{[%clk 0:00:01.5]} 29... dxe5 {[%clk 0:00:44.4]} 30. Ne3 {[%clk 0:00:01.2]}
30... Rd4 {[%clk 0:00:42.9]} 0-1